bitfinex-derivatives/quotes_BTCF0:USTF0_20250416
["timestamp","ask_amount","ask_price","bid_price","bid_amount"]
[1744826789733,0.1189942,84036.0,84035.0,0.17866757]
[1744826789934,0.1189914,84040.0,84039.0,0.1189894]
[1744826790240,0.1189914,84040.0,84036.0,0.21091148]
[1744826790241,0.1189942,84037.0,84036.0,0.1189935]
[1744826790439,0.1189942,84036.0,84035.0,0.00017857]
[1744826790830,0.5558,84039.0,84027.0,0.0595031]
[1744826791039,0.1190041,84030.0,84029.0,0.119002]
[1744826791243,0.3608,84032.0,84010.0,0.84835988]
[1744826791444,0.1983,84031.0,84030.0,0.1190027]
[1744826792143,0.1983,84031.0,84022.0,0.05968537]
[1744826792144,0.1190126,84023.0,84022.0,0.00017857]
[1744826792439,0.0595018,84030.0,84022.0,0.00017857]
[1744826792644,0.0595022,84029.0,84028.0,0.1190041]
[1744826792833,0.2578022,84029.0,84028.0,0.1190041]
[1744826793443,0.4797999,84032.0,84031.0,0.1190013]
[1744826793745,0.3608,84032.0,84031.0,0.1190013]
[1744826793930,0.00032438,84039.0,84038.0,0.1189914]
[1744826794136,0.1189928,84037.0,84036.0,0.0594964]
[1744826794333,0.1190013,84031.0,84030.0,0.3131019]
[1744826794540,0.3608,84033.0,84027.0,0.0595021]
[1744826794747,0.4798,84033.0,84032.0,0.1189999]
[1744826794933,0.4797985,84033.0,84032.0,0.1189999]
[1744826795135,0.1190032,84030.0,84028.0,0.1190053]
[1744826795331,0.3608,84033.0,84023.0,0.193]
[1744826795646,0.1190112,84024.0,84023.0,0.40391148]
[1744826795835,0.1190126,84023.0,84022.0,0.00017857]
[1744826798445,0.1230126,84023.0,84022.0,0.00017857]
[1744826799036,0.1230926,84023.0,84022.0,0.00017857]
[1744826802143,0.00408,84023.0,84022.0,0.33010405]
[1744826802354,0.00010801,84029.0,84028.0,0.1190055]
[1744826802656,0.00017857,84039.0,84038.0,0.1189914]
[1744826802836,0.00017857,84039.0,84038.0,0.32990288]
[1744826803640,0.00017857,84039.0,84038.0,0.51010288]
[1744826803948,0.00025857,84039.0,84038.0,0.51010288]
[1744826804343,0.00017857,84039.0,84038.0,0.51010288]
[1744826804645,0.00525857,84039.0,84038.0,0.51010288]
[1744826805558,0.00525857,84039.0,84038.0,1.02090288]
[1744826806048,0.00517857,84039.0,84038.0,1.02090288]
[1744826806443,0.00525857,84039.0,84038.0,1.02090288]
[1744826806641,0.00010801,84054.0,84053.0,0.1189701]
[1744826806843,0.00010801,84054.0,84051.0,0.0594858]
[1744826807040,0.00010801,84054.0,84053.0,0.21091148]
[1744826807351,0.00010801,84054.0,84053.0,0.32988158]
[1744826807548,0.02207,84055.0,84054.0,0.1189687]
[1744826807749,0.02207,84055.0,84054.0,0.21091148]
[1744826808048,0.02207,84055.0,84047.0,0.4797777]
[1744826808349,0.02207,84055.0,84053.0,0.21091148]
[1744826808649,0.02207,84055.0,84054.0,0.21091148]
[1744826809049,0.02215,84055.0,84054.0,0.21091148]
[1744826809356,0.02215,84055.0,84054.0,0.32988018]
[1744826809950,0.02207,84055.0,84054.0,0.32988018]
[1744826810151,0.02215,84055.0,84054.0,0.32988018]
[1744826810355,0.02207,84055.0,84054.0,0.72988018]
[1744826810551,0.00017735,84063.0,84062.0,0.1189574]
[1744826810848,0.00017735,84063.0,84062.0,0.32986888]
[1744826811351,0.00025735,84063.0,84062.0,0.39801148]
[1744826811540,0.00025735,84063.0,84062.0,0.1871]
[1744826811939,0.00125735,84063.0,84062.0,0.1871]
[1744826812150,0.00125735,84063.0,84057.0,0.0594822]
[1744826812451,0.00125735,84063.0,84056.0,0.1958]
[1744826812452,0.0594805,84060.0,84056.0,0.1871]
[1744826812648,0.1835,84059.0,84056.0,0.3060652]
[1744826812850,0.6632619,84059.0,84056.0,0.1871]
[1744826813045,0.3024619,84059.0,84057.0,0.1189642]
[1744826813240,0.1189645,84057.0,84056.0,0.3797]
[1744826813445,0.1835,84059.0,84047.0,0.3608]
[1744826813650,0.1189772,84048.0,84047.0,0.3608]
[1744826813845,0.1189699,84054.0,84048.0,0.21091148]
[1744826814045,0.1189715,84052.0,84051.0,0.21091148]
[1744826814250,0.1189744,84050.0,84049.0,0.40351148]
[1744826814446,8e-05,84052.0,84051.0,0.21091148]
[1744826814652,0.0594885,84049.0,84046.0,0.00017846]
[1744826814853,8e-05,84052.0,84049.0,0.21091148]
[1744826815045,0.1189772,84048.0,84047.0,0.21091148]
[1744826815245,0.19278,84052.0,84048.0,0.001]
[1744826815446,0.19278,84052.0,84049.0,0.21091148]
[1744826815652,0.118973,84051.0,84050.0,0.3873]
[1744826815851,0.118973,84051.0,84050.0,0.1947]
[1744826816051,0.315973,84051.0,84050.0,0.1947]
[1744826816255,8e-05,84052.0,84050.0,0.40561148]
[1744826816449,0.1190515,84052.0,84051.0,0.39401148]
[1744826816646,0.4798515,84052.0,84051.0,0.1831]
[1744826816950,0.36088,84052.0,84046.0,0.00217846]
[1744826817145,0.1189786,84047.0,84046.0,0.00217846]
[1744826817350,0.1189786,84047.0,84046.0,0.00017846]
[1744826817748,0.1190055,84028.0,84027.0,0.1831]
[1744826817956,0.1190069,84027.0,84026.0,0.21091148]
[1744826818154,0.4202897,84047.0,84030.0,0.21091148]
[1744826818353,0.1189961,84035.0,84030.0,0.21091148]
[1744826818657,0.1189999,84032.0,84031.0,0.3685]
[1744826818847,0.1189999,84032.0,84031.0,0.1854]
[1744826819055,0.1190098,84025.0,84024.0,0.00017846]
[1744826819250,0.1190197,84018.0,84012.0,0.1991]
[1744826819451,0.3608,84018.0,84007.0,0.43736282]
[1744826819748,0.3878,84017.0,84013.0,0.21091148]
[1744826819954,0.1190324,84009.0,84008.0,0.1991]
[1744826820155,0.4473108,84017.0,84013.0,0.21091148]
[1744826820353,0.4473108,84017.0,84014.0,0.1983]
[1744826820354,0.1190239,84015.0,84014.0,0.1983]
[1744826820652,0.1190339,84008.0,84007.0,0.43854128]
[1744826821050,8e-05,84015.0,84014.0,0.1190253]
[1744826821366,0.3608,84028.0,84014.0,0.1190253]
[1744826821367,0.3608,84028.0,84022.0,0.119014]
[1744826821553,0.00010801,84031.0,84027.0,0.0595032]
[1744826821865,0.001,84035.0,84034.0,0.118997]
[1744826822163,0.1946,84052.0,84045.0,0.1189814]
[1744826822366,0.1189781,84048.0,84045.0,0.69069288]
[1744826822659,0.00508,84046.0,84045.0,0.69069288]
[1744826823162,0.0594935,84042.0,84037.0,0.00017846]
[1744826823351,0.1189885,84040.0,84039.0,0.21091148]
[1744826823565,0.00508,84046.0,84041.0,0.21091148]
[1744826823788,0.00508,84046.0,84045.0,0.69069288]
[1744826823959,0.005,84046.0,84045.0,0.32989288]
[1744826824165,0.005,84046.0,84042.0,0.1918]
[1744826824166,0.1189843,84043.0,84042.0,0.1918]
[1744826824364,0.1189914,84038.0,84037.0,0.00017846]
[1744826824561,0.1189863,84042.0,84037.0,0.22108994]
[1744826824748,0.1189907,84039.0,84038.0,0.1918]
[1744826824955,0.1189914,84038.0,84037.0,0.00017846]
[1744826825262,0.1190197,84018.0,84017.0,0.01]
[1744826825458,0.1190197,84018.0,84015.0,0.0595114]
[1744826825761,0.1190197,84018.0,84017.0,0.21091148]
[1744826826061,0.0595175,84008.0,84005.0,0.24145902]
[1744826826270,0.1190367,84006.0,84005.0,0.24145902]
[1744826826458,0.1190353,84007.0,84006.0,0.1953]
[1744826826652,0.1839,84009.0,84006.0,0.1953]
[1744826826865,0.1190353,84007.0,84006.0,0.40621148]
[1744826827060,0.1191153,84007.0,84006.0,0.40621148]
[1744826827558,8e-05,84007.0,84006.0,0.40621148]
[1744826827757,8e-05,84007.0,84006.0,0.89604818]
[1744826827955,0.00017846,84015.0,84014.0,0.1190253]
[1744826828161,0.00017846,84015.0,84014.0,0.70073678]
[1744826828364,0.11920236,84015.0,84014.0,0.21091148]
[1744826828557,0.11920236,84015.0,84014.0,0.32993678]
[1744826828755,0.11928236,84015.0,84014.0,0.32993678]
[1744826829560,0.0595197,84005.0,83995.0,0.25145902]
[1744826829758,0.1190466,83999.0,83997.0,0.1190487]
[1744826829960,0.0595214,84002.0,83998.0,0.21967846]
[1744826830257,0.1190466,83999.0,83998.0,0.00017846]
[1744826830659,0.1190466,83999.0,83998.0,0.00417846]
[1744826831266,0.1190466,83999.0,83998.0,0.00617846]
[1744826831767,0.1190735,83980.0,83979.0,0.25145902]
[1744826832070,0.0595275,83994.0,83980.0,0.21091148]
[1744826832071,0.3608,83983.0,83980.0,0.21091148]
[1744826832266,0.3608,83993.0,83991.0,0.21091148]
[1744826832569,0.3608,83993.0,83989.0,0.40041148]
[1744826832862,0.1190664,83985.0,83984.0,0.00017857]
[1744826833061,0.3608,83995.0,83984.0,0.00017857]
[1744826833062,0.0595312,83988.0,83984.0,0.00017857]
[1744826833298,0.3608,83996.0,83986.0,0.0595324]
[1744826833465,0.4203254,83996.0,83989.0,0.21091148]
[1744826833659,0.0595268,83994.0,83987.0,0.1895]
[1744826833862,0.1190565,83992.0,83991.0,0.001]
[1744826834061,0.1190664,83985.0,83984.0,0.00017857]
[1744826834255,0.4798664,83985.0,83984.0,7e-08]
[1744826834568,0.1190829,83974.0,83972.0,0.30182378]
[1744826834766,0.47985824,83985.0,83967.0,0.1914]
[1744826834767,0.1190839,83973.0,83967.0,0.1914]
[1744826835069,8e-05,83974.0,83973.0,0.21091148]
[1744826835254,8e-05,83974.0,83968.0,0.3608]
[1744826835255,0.1190934,83966.0,83954.0,0.01]
[1744826835455,0.4798934,83966.0,83957.0,0.24115488]
[1744826835864,0.1191147,83951.0,83950.0,0.30182378]
[1744826836070,0.3708,83951.0,83931.0,0.3874]
[1744826836260,0.3708,83951.0,83927.0,0.42180897]
[1744826836261,0.0595701,83933.0,83927.0,0.42180897]
[1744826836507,0.1291473,83928.0,83927.0,0.42180897]
[1744826836667,0.1291473,83928.0,83927.0,0.42188897]
[1744826836867,0.0595772,83924.0,83919.0,0.48218797]
[1744826837164,0.1191587,83920.0,83919.0,0.48218797]
[1744826837366,0.4799587,83920.0,83919.0,0.48218797]
[1744826837761,0.5563,83923.0,83919.0,0.48218797]
[1744826837966,0.1191587,83920.0,83919.0,0.48218797]
[1744826838165,0.1955,83921.0,83919.0,0.48218797]
[1744826838367,0.1191587,83920.0,83919.0,0.85928797]
[1744826838768,8e-05,83921.0,83919.0,1.07219945]
[1744826838966,0.3608,83939.0,83935.0,0.1191374]
[1744826839159,0.00010801,83947.0,83935.0,0.44004888]
[1744826839357,0.00010801,83947.0,83935.0,0.81714888]
[1744826839558,0.1914,83950.0,83939.0,0.0595652]
[1744826839767,0.3608,83960.0,83939.0,0.0595652]
[1744826839768,0.00010801,83961.0,83949.0,0.21091148]
[1744826840066,0.00898408,83961.0,83956.0,0.21091148]
[1744826840258,8e-05,83961.0,83958.0,0.21091148]
[1744826840460,0.0595488,83963.0,83960.0,0.21091148]
[1744826840660,0.1191019,83960.0,83959.0,0.393]
[1744826840870,0.1191019,83960.0,83951.0,0.00017868]
[1744826840871,0.1191118,83953.0,83952.0,0.1966]
[1744826841069,0.1191095,83955.0,83952.0,0.60391148]
[1744826841270,0.1191076,83956.0,83955.0,0.21091148]
[1744826841570,0.1191076,83956.0,83955.0,0.57171148]
[1744826841767,0.119111,83954.0,83952.0,0.1964]
[1744826842071,0.420355,83955.0,83933.0,0.37867446]
[1744826842264,0.1191374,83935.0,83934.0,0.393]
[1744826842673,0.1191374,83935.0,83934.0,0.60391148]
[1744826842970,0.0595645,83941.0,83934.0,0.60399148]
[1744826843271,0.119126,83943.0,83942.0,0.21091148]
[1744826843467,0.1191374,83935.0,83934.0,0.39308]
[1744826843875,0.1191322,83939.0,83934.0,0.60391148]
[1744826844173,8e-05,83943.0,83939.0,0.21091148]
[1744826844363,0.1191289,83941.0,83940.0,0.39821148]
[1744826844564,0.1191289,83941.0,83940.0,0.1873]
[1744826844867,0.377,83941.0,83934.0,0.18838]
[1744826845064,8e-05,83943.0,83940.0,0.21091148]
[1744826845363,0.00017868,83946.0,83942.0,0.21091148]
[1744826845567,0.00017868,83946.0,83945.0,0.69083468]
[1744826845767,0.00017868,83946.0,83945.0,0.33003468]
[1744826845973,0.00017868,83946.0,83945.0,0.21091148]
[1744826846167,0.00017868,83946.0,83945.0,0.33003468]
[1744826846370,0.00025868,83946.0,83945.0,0.33003468]
[1744826846672,0.05485312,83946.0,83945.0,0.33003468]
[1744826847059,0.05485312,83946.0,83945.0,0.21091148]
[1744826847265,0.05485312,83946.0,83945.0,0.21291148]
[1744826847462,0.05485312,83946.0,83945.0,0.33203468]
[1744826847774,0.17397492,83946.0,83945.0,0.21291148]
[1744826848262,0.17397492,83946.0,83945.0,0.002]
[1744826848662,0.72887492,83946.0,83945.0,0.002]
[1744826849663,0.119136,83936.0,83935.0,0.3608]
[1744826850071,0.1191388,83934.0,83933.0,0.00768646]
[1744826850566,0.1191388,83934.0,83933.0,0.21859794]
[1744826850767,0.189,83935.0,83933.0,0.21099148]
[1744826850973,0.19930801,83943.0,83934.0,0.21091148]
[1744826851301,0.1191374,83935.0,83934.0,0.21091148]
[1744826851474,0.1191388,83934.0,83933.0,0.01168646]
[1744826851670,0.3183388,83934.0,83933.0,0.01268646]
[1744826851876,0.3183388,83934.0,83933.0,0.01276646]
[1744826852473,0.3183388,83934.0,83933.0,0.01268646]
[1744826852675,0.6791388,83934.0,83933.0,0.01276646]
[1744826852976,0.6792188,83934.0,83933.0,0.00876646]
[1744826853475,0.1191445,83930.0,83929.0,0.00012058]
[1744826854071,0.1191445,83930.0,83929.0,0.00020058]
[1744826854379,0.1191445,83930.0,83929.0,0.00012058]
[1744826854569,0.1191445,83930.0,83929.0,0.00520058]
[1744826854877,0.1191445,83930.0,83929.0,0.00720058]
[1744826855084,0.1861,83933.0,83920.0,0.000108]
[1744826855283,0.1191644,83916.0,83912.0,0.00019683]
[1744826855574,0.1191715,83911.0,83910.0,0.1843]
[1744826855878,0.3608,83923.0,83915.0,0.21091148]
[1744826856177,0.1191587,83920.0,83919.0,0.21091148]
[1744826856375,0.1191615,83918.0,83917.0,0.1843]
[1744826856981,0.1191715,83911.0,83910.0,0.00708]
[1744826857272,0.1191814,83904.0,83903.0,0.000108]
[1744826857474,0.3608,83904.0,83891.0,0.0001458]
[1744826857780,0.119197,83893.0,83892.0,0.39521148]
[1744826857977,0.479997,83893.0,83892.0,0.39521148]
[1744826858378,0.1192041,83888.0,83887.0,0.00523391]
[1744826858698,0.1192041,83888.0,83887.0,0.00512591]
[1744826858888,0.1192041,83888.0,83887.0,0.00520591]
[1744826859076,0.1192041,83888.0,83887.0,0.00512591]
[1744826859275,0.1192041,83888.0,83887.0,0.00520591]
[1744826859474,0.1192041,83888.0,83887.0,0.00512591]
[1744826859679,0.1192041,83888.0,83887.0,0.00208]
[1744826859974,0.1192041,83888.0,83887.0,0.002]
[1744826860176,0.1192041,83888.0,83887.0,0.00208]
[1744826860376,0.1192041,83888.0,83887.0,0.00108]
[1744826860806,0.1192254,83873.0,83872.0,0.1888]
[1744826860980,0.1192254,83873.0,83872.0,0.39971148]
[1744826861577,0.00017879,83881.0,83877.0,0.1192195]
[1744826861768,0.00017879,83881.0,83880.0,0.33012698]
[1744826862173,0.00017879,83881.0,83880.0,0.47091148]
[1744826862376,0.00017879,83881.0,83880.0,0.59012698]
[1744826862578,0.1191985,83892.0,83887.0,0.1192046]
[1744826862775,0.1191984,83892.0,83891.0,0.21091148]
[1744826862977,0.0595873,83909.0,83891.0,0.57171148]
[1744826863179,0.00010801,83901.0,83897.0,0.33010278]
[1744826863682,0.05978694,83905.0,83897.0,0.21091148]
[1744826863683,0.05591258,83898.0,83897.0,0.21091148]
[1744826863883,0.05583258,83898.0,83897.0,0.21091148]
[1744826864071,0.05583258,83898.0,83897.0,0.69840278]
[1744826864276,0.05591258,83898.0,83897.0,0.69840278]
[1744826864677,0.00017879,83906.0,83897.0,0.69840278]
[1744826864678,0.00017879,83906.0,83905.0,0.11918]
[1744826864984,0.00017879,83906.0,83905.0,0.33009148]
[1744826865377,0.00025879,83906.0,83905.0,0.70869148]
[1744826865578,0.11943739,83906.0,83905.0,0.58951148]
[1744826865974,0.11943739,83906.0,83905.0,0.58959148]
[1744826866170,0.48023739,83906.0,83905.0,8e-05]
[1744826866375,0.1191899,83898.0,83897.0,0.1947]
[1744826866573,0.1191899,83898.0,83897.0,0.3786]
[1744826866781,0.1191899,83898.0,83897.0,0.58951148]
[1744826866981,0.00425879,83906.0,83900.0,0.1191865]
[1744826867188,0.00425879,83906.0,83905.0,0.21091148]
[1744826867487,0.00417879,83906.0,83897.0,0.3786]
[1744826867783,0.002,83898.0,83897.0,0.3786]
[1744826868187,0.1221899,83898.0,83897.0,0.58959148]
[1744826868971,0.003,83898.0,83897.0,0.58959148]
[1744826869182,0.001,83898.0,83897.0,0.70878278]
[1744826869782,0.003,83898.0,83897.0,0.70878278]
[1744826870286,0.001,83898.0,83897.0,0.70878278]
[1744826870477,0.003,83898.0,83897.0,0.70878278]
[1744826870673,0.002,83898.0,83897.0,0.70878278]
[1744826870876,0.003,83898.0,83897.0,0.70878278]
[1744826871082,0.1221899,83898.0,83897.0,0.58959148]
[1744826871380,0.003,83898.0,83897.0,0.70870278]
[1744826871579,0.002,83898.0,83897.0,0.70878278]
[1744826871974,0.1191875,83900.0,83899.0,0.1191884]
[1744826872178,0.1191899,83898.0,83897.0,0.37868]
[1744826872385,0.11935739,83906.0,83905.0,0.21091148]
[1744826872688,0.11943739,83906.0,83905.0,0.21091148]
[1744826872882,0.11935739,83906.0,83905.0,0.21091148]
[1744826873083,0.11943739,83906.0,83905.0,0.21091148]
[1744826873483,0.1191899,83898.0,83897.0,0.37868]
[1744826873782,0.1201899,83898.0,83897.0,0.37868]
[1744826873974,0.1201899,83898.0,83897.0,0.58951148]
[1744826874480,0.1191899,83898.0,83897.0,0.58951148]
[1744826874683,0.1201899,83898.0,83897.0,0.58959148]
[1744826875273,0.1221899,83898.0,83897.0,0.58959148]
[1744826876281,0.1221899,83898.0,83897.0,8e-05]
[1744826876481,0.1191984,83892.0,83891.0,0.3815]
[1744826876881,0.1191984,83892.0,83891.0,0.59241148]
[1744826877088,0.003,83898.0,83891.0,0.59241148]
[1744826877281,0.1221899,83898.0,83897.0,0.21091148]
[1744826877589,0.003,83898.0,83897.0,0.69090278]
[1744826877786,0.1211899,83898.0,83897.0,0.94241148]
[1744826878287,0.00017879,83906.0,83897.0,0.94241148]
[1744826878288,0.00017879,83906.0,83905.0,0.11918]
[1744826878584,0.11935739,83906.0,83905.0,0.49009148]
[1744826878783,0.11943739,83906.0,83905.0,0.58161148]
[1744826878977,0.11935739,83906.0,83905.0,0.58161148]
[1744826879180,0.11943739,83906.0,83905.0,0.58161148]
[1744826879475,0.12343739,83906.0,83905.0,0.58161148]
[1744826879783,0.12343739,83906.0,83905.0,0.1822]
[1744826879979,0.12343739,83906.0,83905.0,0.39311148]
[1744826880188,0.12343739,83906.0,83905.0,0.1822]
[1744826880380,0.12543739,83906.0,83905.0,0.39311148]
[1744826880688,0.12443739,83906.0,83905.0,0.39311148]
[1744826881085,0.12243739,83906.0,83905.0,0.39311148]
[1744826881288,0.00525879,83906.0,83905.0,0.54311148]
[1744826881483,0.00217879,83906.0,83905.0,0.66229148]
[1744826881683,0.00625879,83906.0,83905.0,0.51229148]
[1744826881994,0.12543739,83906.0,83905.0,0.39311148]
[1744826882183,0.48523739,83906.0,83905.0,0.1822]
[1744826882386,0.1192013,83890.0,83889.0,0.36097879]
[1744826882588,0.1192013,83890.0,83889.0,0.37132142]
[1744826882785,0.1192013,83890.0,83889.0,0.5822329]
[1744826882984,0.1192013,83890.0,83889.0,0.76969027]
[1744826883287,0.0595956,83897.0,83891.0,0.1191991]
[1744826883488,0.06284839,83906.0,83897.0,0.21091148]
[1744826883696,0.12243739,83906.0,83905.0,0.21091148]
[1744826883989,0.00217879,83906.0,83905.0,0.50009148]
[1744826884196,0.12143739,83906.0,83905.0,0.38091148]
[1744826884384,0.12135739,83906.0,83905.0,0.58731148]
[1744826884579,0.11943739,83906.0,83905.0,0.58731148]
[1744826885186,0.00025879,83906.0,83905.0,0.70649148]
[1744826885386,0.00117879,83906.0,83905.0,0.70649148]
[1744826885694,0.48123739,83906.0,83905.0,0.1886]
[1744826885897,0.11943739,83906.0,83905.0,0.1886]
[1744826886080,0.119197,83893.0,83892.0,0.00026572]
[1744826886281,0.119197,83893.0,83892.0,0.23144292]
[1744826886481,0.119197,83893.0,83892.0,0.23091148]
[1744826886786,0.119197,83893.0,83892.0,0.23099148]
[1744826886985,0.1192027,83889.0,83888.0,0.000108]
[1744826887289,0.3897,83892.0,83869.0,0.01]
[1744826887485,0.3897,83892.0,83861.0,0.0051275]
[1744826887486,0.1192397,83863.0,83862.0,0.3777]
[1744826887687,0.1192397,83863.0,83862.0,0.3877]
[1744826887885,0.1192397,83863.0,83862.0,0.59861148]
[1744826888389,0.1192411,83862.0,83861.0,0.0051275]
[1744826888583,0.1192525,83854.0,83853.0,0.3777]
[1744826888985,0.1192525,83854.0,83853.0,0.58861148]
[1744826889190,0.1994,83862.0,83855.0,0.0597335]
[1744826889393,0.3186411,83862.0,83861.0,0.21091148]
[1744826889581,0.3186411,83862.0,83861.0,0.21591148]
[1744826889785,0.5074411,83862.0,83861.0,0.21591148]
[1744826890228,0.5161737,83862.0,83861.0,0.005]
[1744826890586,0.5161737,83862.0,83861.0,0.00808]
[1744826891291,0.1192539,83853.0,83852.0,0.000108]
[1744826891492,0.1192539,83853.0,83837.0,0.5413]
[1744826891493,0.0596281,83852.0,83837.0,0.5413]
[1744826891682,0.3816,83852.0,83850.0,0.21091148]
[1744826891884,0.0001789,83853.0,83851.0,0.21091148]
[1744826892096,0.0596285,83851.0,83850.0,0.21091148]
[1744826892293,0.1192629,83847.0,83845.0,0.21091148]
[1744826892596,0.0596334,83844.0,83837.0,0.1805]
[1744826892794,0.1192752,83838.0,83830.0,0.000108]
[1744826892994,0.393,83837.0,83835.0,0.02512909]
[1744826893193,0.393,83837.0,83835.0,0.02520909]
[1744826893491,0.393,83837.0,83836.0,0.40861148]
[1744826893695,0.5122766,83837.0,83836.0,0.40861148]
[1744826893999,0.8730766,83837.0,83836.0,0.21091148]
[1744826894195,0.1192781,83836.0,83835.0,0.00520909]
[1744826894393,0.7538,83837.0,83819.0,0.3608]
[1744826894693,0.393,83835.0,83819.0,0.3608]
[1744826894895,0.393,83835.0,83824.0,0.21091148]
[1744826895190,0.0596411,83834.0,83825.0,0.3936]
[1744826895532,0.393,83835.0,83825.0,0.3936]
[1744826895790,0.3796,83833.0,83825.0,0.3936]
[1744826895991,0.1192915,83827.0,83819.0,0.36088]
[1744826896296,0.1192971,83823.0,83820.0,0.41051148]
[1744826896492,0.4204455,83827.0,83820.0,0.41051148]
[1744826896493,0.3796,83822.0,83820.0,0.41051148]
[1744826896690,0.1192994,83821.0,83820.0,0.01008]
[1744826896891,0.1192994,83821.0,83820.0,8e-05]
[1744826897198,0.4988994,83821.0,83820.0,8e-05]
[1744826897388,0.0596527,83817.0,83809.0,0.00513068]
[1744826897692,0.49890255,83821.0,83809.0,0.00513068]
[1744826897693,0.1193151,83810.0,83809.0,0.00513068]
[1744826898193,0.3843,83810.0,83809.0,0.00513068]
[1744826898398,0.4801142,83811.0,83809.0,0.00513068]
[1744826898399,0.3608,83811.0,83809.0,0.00513068]
[1744826898891,0.3052151,83810.0,83809.0,0.00513068]
[1744826899087,0.5036151,83810.0,83809.0,0.00613068]
[1744826899291,0.5036151,83810.0,83809.0,0.00621068]
[1744826899488,0.5036151,83810.0,83809.0,0.00613068]
[1744826899718,0.5036151,83810.0,83809.0,0.00621068]
[1744826899888,0.3843,83810.0,83809.0,0.00621068]
[1744826900095,0.5036151,83810.0,83809.0,0.00613068]
[1744826900393,0.5036151,83810.0,83809.0,0.00621068]
[1744826900792,0.5036151,83810.0,83809.0,0.00713068]
[1744826901192,0.5036151,83810.0,83809.0,0.00613068]
[1744826901493,0.5036151,83810.0,83809.0,0.00713068]
[1744826901696,0.51253181,83810.0,83809.0,0.00713068]
[1744826901884,0.51253181,83810.0,83809.0,0.00721068]
[1744826903701,0.1193279,83801.0,83800.0,0.1]
[1744826903910,0.1193279,83801.0,83800.0,0.07659377]
[1744826903911,0.4801279,83801.0,83800.0,0.07659377]
[1744826904196,0.1193279,83801.0,83800.0,0.07659377]
[1744826904394,0.1193181,83808.0,83800.0,0.28750525]
[1744826904598,0.2485583,83809.0,83805.0,0.21091148]
[1744826904893,0.1193208,83806.0,83805.0,0.21091148]
[1744826905091,0.0596603,83807.0,83800.0,0.07759377]
[1744826905294,0.2485603,83807.0,83805.0,0.21091148]
[1744826905494,0.0596611,83805.0,83803.0,0.21091148]
[1744826905697,0.7942618,83804.0,83803.0,0.21091148]
[1744826905890,0.4334618,83804.0,83803.0,0.21091148]
[1744826906298,0.1889,83804.0,83803.0,0.21091148]
[1744826906499,0.1193236,83804.0,83803.0,0.21091148]
[1744826907489,0.00873671,83810.0,83803.0,0.15]
[1744826907689,0.1193157,83810.0,83809.0,0.21091148]
[1744826908089,0.00901189,83810.0,83800.0,0.07659377]
[1744826908317,0.3708,83809.0,83806.0,0.21091148]
[1744826908495,0.1193136,83811.0,83810.0,0.21091148]
[1744826908794,0.0001789,83818.0,83810.0,0.39091148]
[1744826908990,0.00906987,83818.0,83817.0,0.21091148]
[1744826909195,0.1194826,83818.0,83817.0,0.21091148]
[1744826910493,0.13061721,83818.0,83817.0,0.21091148]
[1744826911103,0.1193208,83806.0,83805.0,0.1828]
[1744826911295,0.1193279,83801.0,83800.0,0.07659377]
[1744826912498,0.1193279,83801.0,83800.0,0.07311881]
[1744826912703,0.1193279,83801.0,83800.0,0.07319881]
[1744826913000,0.1193279,83801.0,83800.0,0.07311881]
[1744826913192,0.1193279,83801.0,83800.0,0.07319881]
[1744826913396,0.1193279,83801.0,83800.0,0.07419881]
[1744826914504,0.1193279,83801.0,83800.0,0.07411881]
[1744826914705,0.1193279,83801.0,83800.0,0.07419881]
[1744826915604,0.1193279,83801.0,83800.0,0.28511029]
[1744826915800,0.3608,83805.0,83800.0,0.28511029]
[1744826916002,0.1193143,83811.0,83804.0,0.21091148]
[1744826916198,0.12861721,83818.0,83817.0,0.21091148]
[1744826916399,0.00931351,83818.0,83817.0,0.21091148]
[1744826916820,0.12861721,83818.0,83817.0,0.21091148]
[1744826918002,0.13361721,83818.0,83817.0,0.21191148]
[1744826918409,0.00931351,83818.0,83817.0,0.21091148]
[1744826918606,0.01331351,83818.0,83817.0,0.21091148]
[1744826918806,0.13261721,83818.0,83817.0,0.21091148]
[1744826919007,0.13561721,83818.0,83817.0,0.21091148]
[1744826919712,0.13461721,83818.0,83817.0,0.21091148]
[1744826920410,0.13261721,83818.0,83817.0,0.21091148]
[1744826920604,0.13461721,83818.0,83817.0,0.21091148]
[1744826920908,0.1193094,83814.0,83813.0,0.1903]
[1744826921413,0.0061789,83818.0,83813.0,0.57121148]
[1744826921708,0.01351416,83825.0,83822.0,0.21091148]
[1744826921915,0.1192951,83824.0,83823.0,0.1849]
[1744826922102,0.01882787,83838.0,83823.0,0.1849]
[1744826922409,0.1192929,83826.0,83823.0,0.1849]
[1744826922610,0.0001789,83833.0,83823.0,0.1849]
[1744826922909,0.0001789,83833.0,83829.0,0.3608]
[1744826923099,0.02782573,83838.0,83829.0,0.3608]
[1744826923100,0.01399786,83838.0,83832.0,0.21091148]
[1744826923306,0.01399786,83838.0,83837.0,0.21091148]
[1744826923507,0.01399786,83838.0,83837.0,0.22091148]
[1744826923704,0.14684886,83838.0,83837.0,0.22091148]
[1744826924008,0.1193008,83820.0,83819.0,0.01]
[1744826924289,0.0596466,83826.0,83822.0,0.21091148]
[1744826924419,0.1193037,83818.0,83817.0,0.1804]
[1744826924615,0.05965,83821.0,83817.0,0.1804]
[1744826924910,0.1192994,83821.0,83820.0,0.21091148]
[1744826925409,0.1193008,83820.0,83819.0,0.004]
[1744826925806,0.1193008,83820.0,83819.0,0.21491148]
[1744826926004,0.1193008,83820.0,83819.0,0.004]
[1744826926307,0.3059008,83820.0,83819.0,0.004]
[1744826927009,0.1193051,83817.0,83816.0,0.0001789]
[1744826928202,0.1193051,83817.0,83816.0,0.21109038]
[1744826928711,0.1273051,83817.0,83816.0,0.0011789]
[1744826929209,0.1303051,83817.0,83816.0,0.0011789]
[1744826929611,0.5151051,83817.0,83816.0,0.0011789]
[1744826930005,0.1193279,83801.0,83800.0,0.25466774]
[1744826930603,0.1193279,83801.0,83800.0,0.25474774]
[1744826931006,0.3071279,83801.0,83800.0,0.25474774]
[1744826931207,0.3071279,83801.0,83800.0,0.07319881]
[1744826931410,0.3071279,83801.0,83800.0,0.07311881]
[1744826931610,0.3071279,83801.0,83800.0,0.07419881]
[1744826931809,0.3121279,83801.0,83800.0,0.07419881]
[1744826932004,0.3121279,83801.0,83800.0,0.0732854]
[1744826932415,0.68145893,83801.0,83800.0,0.0341905]
[1744826932712,0.68145893,83801.0,83800.0,0.0342705]
[1744826932713,0.43145893,83801.0,83800.0,0.0342705]
[1744826932916,0.43345893,83801.0,83800.0,0.0342705]
[1744826933112,0.1193564,83781.0,83780.0,0.21091148]
[1744826933312,0.1193621,83777.0,83762.0,0.01]